bitfinex/quotes_SOLUSD_20240708
["timestamp","ask_amount","ask_price","bid_price","bid_amount"]
[1720431617092,20.70202927,140.25,140.14,21.5498]
[1720431617489,21.46,140.24,140.14,21.5498]
[1720431617699,20.70202927,140.23,140.14,21.5498]
[1720431617906,42.16202927,140.23,140.14,21.5498]
[1720431619104,42.16202927,140.23,140.14,15.5023]
[1720431620004,42.16202927,140.23,140.1,22.3306]
[1720431620223,0.17,140.22,140.1,22.3306]
[1720431620395,0.70202927,140.21,140.1,22.3306]
[1720431620715,0.70202927,140.2,140.1,22.3306]
[1720431622597,0.70202927,140.19,140.1,22.3306]
[1720431622918,0.70202927,140.23,140.11,0.17]
[1720431623113,0.70202927,140.23,140.11,20.17]
[1720431623689,15.0,140.28,140.11,20.17]
[1720431623690,22.16202927,140.25,140.11,20.17]
[1720431624207,20.0,140.24,140.11,20.17]
[1720431624416,0.70202927,140.23,140.12,22.9506]
[1720431624586,0.70202927,140.26,140.13,0.17]
[1720431624787,0.70202927,140.26,140.13,20.17]
[1720431626013,22.16202927,140.26,140.12,412.3506]
[1720431626202,21.46,140.24,140.12,412.3506]
[1720431626397,20.70202927,140.23,140.12,412.3506]
[1720431627309,0.70202927,140.22,140.13,0.17]
[1720431627625,21.46,140.24,140.13,0.17]
[1720431627796,42.16202927,140.23,140.13,0.17]
[1720431628123,22.16202927,140.23,140.13,0.17]
[1720431628296,20.0,140.22,140.13,0.17]
[1720431628616,0.70202927,140.21,140.13,0.17]
[1720431629317,21.46,140.24,140.13,0.17]
[1720431629526,42.16202927,140.23,140.13,0.17]
[1720431629694,22.16202927,140.23,140.13,0.17]
[1720431629895,20.0,140.22,140.13,0.17]
[1720431630212,0.70202927,140.21,140.12,22.9506]
[1720431630392,0.70202927,140.2,140.12,22.9506]
[1720431631596,0.70202927,140.21,140.12,22.9506]
[1720431632321,0.70202927,140.21,140.13,0.17]
[1720431633697,0.70202927,140.23,140.13,0.17]
[1720431634323,22.16202927,140.28,140.13,20.17]
[1720431636422,21.46,140.26,140.13,20.17]
[1720431636615,42.16202927,140.25,140.13,20.17]
[1720431636921,22.16202927,140.25,140.13,20.17]
[1720431637244,41.46,140.24,140.13,0.17]
[1720431637425,0.70202927,140.23,140.12,22.9506]
[1720431638393,0.17,140.22,140.12,22.9506]
[1720431638597,0.70202927,140.21,140.12,22.9506]
[1720431638906,0.70202927,140.2,140.12,22.9506]
[1720431641206,22.16202927,140.2,140.12,16.5145]
[1720431641411,21.46,140.18,140.12,16.5145]
[1720431641607,20.70202927,140.17,140.12,16.5145]
[1720431642122,20.70202927,140.17,140.08,21.6877]
[1720431642330,42.16202927,140.17,140.08,27.42573921]
[1720431642532,0.70202927,140.16,140.08,27.42573921]
[1720431643236,0.70202927,140.16,140.08,21.6877]
[1720431643531,0.70202927,140.16,140.08,15.6831]
[1720431644328,0.70202927,140.16,140.05,12.27931609]
[1720431644329,0.17,140.15,140.05,12.27931609]
[1720431644617,0.70202927,140.14,140.05,5.75911609]
[1720431644820,21.46,140.13,140.04,15.2384]
[1720431645124,42.16202927,140.12,140.04,15.2384]
[1720431645635,20.70202927,140.12,140.04,15.2384]
[1720431645841,0.70202927,140.12,140.04,15.2384]
[1720431646339,20.70202927,140.13,140.05,0.17]
[1720431646512,6.1255,140.17,140.05,0.17]
[1720431646513,20.70202927,140.16,140.05,0.17]
[1720431648213,42.16202927,140.16,140.05,0.17]
[1720431648433,42.16202927,140.16,140.04,15.2384]
[1720431648622,0.17,140.15,140.04,15.2384]
[1720431648934,0.70202927,140.14,140.04,15.2384]
[1720431650631,21.46,140.12,140.01,0.1]
[1720431650839,42.16202927,140.11,140.01,0.1]
[1720431651025,0.70202927,140.1,140.01,0.1]
[1720431651225,21.46,140.09,140.01,0.1]
[1720431651418,20.70202927,140.08,140.01,0.1]
[1720431651751,0.70202927,140.07,140.01,0.1]
[1720431652713,0.17,140.06,140.01,0.1]
[1720431652913,0.70202927,140.05,140.01,0.1]
[1720431653137,0.70202927,140.04,140.01,0.1]
[1720431653837,0.70202927,140.07,140.01,0.1]
[1720431654725,0.70202927,140.09,140.01,0.1]
[1720431655542,0.70202927,140.09,140.02,15.8138]
[1720431655840,0.70202927,140.11,140.02,15.8138]
[1720431656340,0.70202927,140.14,140.03,0.17]
[1720431656722,0.70202927,140.14,140.03,20.17]
[1720431657551,0.70202927,140.15,140.03,20.17]
[1720431657851,0.70202927,140.18,140.05,15.2683]
[1720431658051,0.70202927,140.17,140.06,20.17]
[1720431658425,21.46,140.2,140.06,20.17]
[1720431659548,0.70202927,140.19,140.06,20.17]
[1720431660617,0.70202927,140.19,140.06,409.57]
[1720431660837,0.70202927,140.2,140.06,418.78867125]
[1720431661038,0.70202927,140.2,140.05,15.2683]
[1720431661426,15.70202927,140.2,140.05,15.2683]
[1720431661631,21.46,140.19,140.05,15.2683]
[1720431661845,0.70202927,140.18,140.05,15.2683]
[1720431662047,21.46,140.15,140.05,15.2683]
[1720431662248,15.4443,140.16,140.05,15.2683]
[1720431662249,21.46,140.13,140.05,15.2683]
[1720431662446,20.70202927,140.12,140.05,15.2683]
[1720431663547,20.70202927,140.14,140.05,15.2683]
[1720431663850,41.46,140.13,140.05,15.2683]
[1720431664057,0.70202927,140.12,140.05,15.2683]
[1720431664233,20.70202927,140.12,140.05,15.2683]
[1720431665243,20.70202927,140.11,140.05,15.2683]
[1720431665445,0.70202927,140.11,140.05,15.2683]
[1720431666248,22.16202927,140.11,140.02,5.60042653]
[1720431666450,41.46,140.1,140.01,15.6837]
[1720431666649,0.70202927,140.09,140.01,15.6837]
[1720431666840,42.16202927,140.09,140.01,15.6837]
[1720431667559,0.70202927,140.08,140.01,15.6837]
[1720431669259,42.16202927,140.09,140.01,15.6837]
[1720431669455,42.16202927,140.09,140.01,0.1]
[1720431669760,58.78052927,140.09,140.01,0.1]
[1720431669957,21.46,140.06,140.01,0.1]
[1720431670136,42.16202927,140.05,140.01,0.1]
[1720431670338,0.70202927,140.04,140.01,0.1]
[1720431670534,20.0,140.05,140.01,0.1]
[1720431670535,20.70202927,140.05,140.01,0.1]
[1720431670843,0.70202927,140.04,140.01,0.1]
[1720431671156,0.70202927,140.07,140.01,0.1]
[1720431671352,22.16202927,140.07,140.01,0.1]
[1720431671558,41.46,140.06,140.01,0.1]
[1720431671728,20.70202927,140.05,140.01,0.1]
[1720431671930,0.70202927,140.04,140.01,0.1]
[1720431672852,0.70202927,140.03,140.01,0.1]
[1720431673247,20.70202927,140.03,140.01,0.1]
[1720431674138,0.70202927,140.03,140.01,0.1]
[1720431674460,42.16202927,140.05,140.01,0.1]
[1720431674665,0.70202927,140.04,140.01,0.1]
[1720431674854,20.70202927,140.04,140.01,0.1]
[1720431675760,20.0,140.03,140.01,0.1]
[1720431676063,0.70202927,140.02,140.01,0.1]
[1720431676748,0.70202927,140.04,140.01,0.1]
[1720431679353,0.70202927,140.07,140.01,0.1]
[1720431680562,21.46,140.06,140.01,0.1]
[1720431680758,42.16202927,140.05,140.01,0.1]
[1720431680964,0.70202927,140.04,140.01,0.1]
[1720431682060,22.16202927,140.08,140.01,0.1]
[1720431682653,0.70202927,140.08,140.01,0.1]
[1720431682981,0.70202927,140.08,140.01,16.2012]
[1720431683270,0.70202927,140.1,140.02,45.0]
[1720431683450,0.70202927,140.1,140.02,45.17]
[1720431684669,0.70202927,140.1,140.02,45.0]
[1720431684969,21.46,140.11,140.02,45.0]
[1720431684970,0.70202927,140.11,140.02,45.0]
[1720431685170,0.70202927,140.11,140.03,0.17]
[1720431685346,0.70202927,140.13,140.03,0.17]
[1720431685954,0.70202927,140.13,140.02,45.0]
[1720431686365,0.70202927,140.13,140.01,16.2012]
[1720431686873,0.70202927,140.15,140.01,16.2012]
[1720431687172,0.70202927,140.14,140.02,0.17]
[1720431687974,0.70202927,140.13,140.02,0.17]
[1720431688653,42.16202927,140.13,140.02,0.17]
[1720431688855,0.70202927,140.13,140.04,16.4989]
[1720431689057,0.70202927,140.15,140.05,0.17]
[1720431689359,0.70202927,140.14,140.05,0.17]
[1720431689677,0.70202927,140.18,140.05,0.17]
[1720431689866,0.70202927,140.17,140.05,0.17]
[1720431690566,21.46,140.16,140.05,0.17]
[1720431690746,20.70202927,140.15,140.05,0.17]
[1720431690954,0.70202927,140.14,140.05,0.17]
[1720431691363,0.70202927,140.14,140.04,16.4989]
[1720431691658,21.46,140.13,140.04,16.4989]
[1720431691872,42.16202927,140.12,140.04,16.4989]
[1720431692970,42.16202927,140.12,140.03,6.5456]
[1720431693474,48.68472927,140.12,140.01,405.9822]
[1720431693858,0.17,140.11,140.01,405.9822]
[1720431694174,0.70202927,140.1,140.01,405.9822]
[1720431695956,0.70202927,140.1,140.01,16.5822]
[1720431696370,0.17,140.09,140.01,0.1]
[1720431696566,0.70202927,140.08,140.01,0.1]
[1720431696770,0.70202927,140.07,140.01,0.1]
[1720431697289,21.46,140.05,140.01,0.1]
[1720431697463,21.46,140.03,140.01,0.1]
[1720431697775,20.70202927,140.02,140.01,0.1]
[1720431700561,20.0,140.02,140.01,0.1]
[1720431703770,22.16202927,140.08,140.01,0.1]
[1720431705056,21.46,140.06,140.01,0.1]
[1720431705259,0.70202927,140.05,140.01,0.1]
[1720431705485,0.70202927,140.04,140.01,0.1]
[1720431706274,22.16202927,140.04,140.01,0.1]
[1720431706800,41.46,140.03,140.01,0.1]
[1720431706968,0.70202927,140.02,140.01,0.1]
[1720431708360,20.70202927,140.02,140.01,0.1]
[1720431708581,20.0,140.02,140.01,0.1]
[1720431708871,20.70202927,140.02,140.01,0.1]
[1720431709078,0.70202927,140.06,140.01,0.1]
[1720431714878,6.4663,140.09,140.01,0.1]
[1720431714879,0.70202927,140.09,140.02,15.494]
[1720431715678,0.70202927,140.12,140.02,15.494]
[1720431716891,21.46,140.11,140.01,0.1]
[1720431717067,21.46,140.09,140.01,0.1]
[1720431717273,21.46,140.07,140.01,0.1]
[1720431717580,20.70202927,140.06,140.01,0.1]
[1720431718394,0.70202927,140.06,140.01,0.1]
[1720431718594,0.70202927,140.05,140.01,0.1]
[1720431718895,0.70202927,140.04,140.01,0.1]
[1720431719773,20.0,140.06,140.01,0.1]
[1720431720793,0.70202927,140.05,140.01,0.1]
[1720431721598,63.80972927,140.05,140.01,0.1]
[1720431721791,21.46,140.03,140.01,0.1]
[1720431721990,20.70202927,140.02,140.01,0.1]
[1720431723598,20.0,140.02,140.01,0.1]
[1720431724492,42.16202927,140.02,140.01,0.1]
[1720431726315,41.63,140.02,140.01,0.1]
[1720431727884,51.6984,140.02,139.91,389.5]
[1720431728086,0.17,140.01,139.91,0.1]
[1720431728285,0.70202927,140.0,139.91,0.1]
[1720431728590,21.46,139.97,139.91,0.1]
[1720431728899,21.46,139.93,139.91,0.1]
[1720431729084,42.16202927,139.92,139.91,0.1]
[1720431729289,42.33202927,139.92,139.91,0.1]
[1720431729676,20.70202927,139.92,139.91,0.1]
[1720431729979,0.70202927,139.99,139.93,6.6508]
[1720431730173,0.70202927,140.04,139.93,6.6508]
[1720431731188,0.70202927,140.04,139.94,0.17]
[1720431731384,6.5257,140.09,139.94,0.17]
[1720431731385,0.70202927,140.05,139.95,16.0834]
[1720431731589,100.0,140.17,139.96,6.7208]
[1720431731590,0.70202927,140.08,139.96,6.7208]
[1720431731794,22.8226,140.13,139.96,6.7208]
[1720431731795,22.16202927,140.12,139.97,16.0834]
[1720431731997,22.16202927,140.12,139.99,16.2182]
[1720431732203,0.70202927,140.12,140.0,0.17]
[1720431732704,0.70202927,140.11,140.0,0.17]
[1720431732899,22.16202927,140.15,140.01,22.4443]
[1720431733197,0.70202927,140.14,140.02,0.17]
[1720431733397,0.70202927,140.14,140.02,20.17]
[1720431733589,0.70202927,140.14,140.02,0.17]
[1720431733992,0.70202927,140.13,140.02,0.17]
[1720431734824,0.70202927,140.13,140.03,22.6678]
[1720431734985,0.70202927,140.16,140.03,22.6678]
[1720431736204,0.17,140.15,140.03,22.6678]
[1720431736508,22.16202927,140.14,140.03,22.6678]
[1720431736713,41.46,140.13,140.03,22.6678]
[1720431736895,0.70202927,140.12,140.03,22.6678]
[1720431738093,0.70202927,140.11,139.99,22.9193]
[1720431739199,0.70202927,140.1,139.99,22.9193]
[1720431739394,21.46,140.09,139.99,22.9193]
[1720431739601,20.70202927,140.08,139.99,22.9193]
[1720431739909,0.70202927,140.07,139.99,22.9193]
[1720431740709,42.16202927,140.09,139.99,22.9193]
[1720431741211,42.16202927,140.09,139.95,22.0382]
[1720431741410,21.46,140.06,139.95,22.0382]
[1720431741597,21.46,140.04,139.95,22.0382]
[1720431741798,42.16202927,140.03,139.95,22.0382]
[1720431742509,21.46,140.01,139.91,0.1]
[1720431742811,21.46,139.99,139.91,0.1]
[1720431743010,0.70202927,139.98,139.91,0.1]
[1720431743210,20.70202927,139.98,139.91,0.1]
[1720431743791,20.70202927,140.04,139.91,0.1]
[1720431743990,0.17,140.03,139.91,0.1]
[1720431744193,0.70202927,140.02,139.91,0.27]
[1720431744408,0.70202927,140.01,139.91,0.27]
[1720431745919,0.70202927,140.01,139.91,0.1]
[1720431746114,0.17,140.0,139.91,0.1]
[1720431746304,0.70202927,139.99,139.91,0.1]
[1720431746618,0.70202927,139.98,139.91,0.1]
[1720431747309,42.16202927,139.98,139.91,0.1]
[1720431749096,37.3214,139.97,139.91,0.1]
[1720431749313,21.46,139.95,139.91,0.1]
[1720431749499,21.46,139.93,139.91,0.1]
[1720431749695,20.70202927,139.92,139.91,0.1]
[1720431750415,42.16202927,139.92,139.91,0.1]
[1720431750716,42.33202927,139.92,139.91,0.1]
[1720431751507,48.35122927,139.92,139.81,0.1]
[1720431751717,21.46,139.9,139.81,0.1]
[1720431752014,20.70202927,139.89,139.82,15.7]
[1720431752217,0.70202927,139.91,139.82,15.7]
[1720431752415,0.70202927,139.91,139.83,6.1581]
[1720431753607,0.70202927,139.91,139.84,0.17]
[1720431753907,12.06892491,139.99,139.84,0.17]
[1720431753908,22.16202927,139.97,139.84,0.17]
[1720431754116,22.16202927,139.97,139.83,6.1581]
[1720431754301,22.16202927,139.97,139.84,0.17]
[1720431754720,22.16202927,139.97,139.83,6.1581]
[1720431755019,122.16202927,139.97,139.83,6.1581]
[1720431755215,21.46,139.93,139.83,6.1581]
[1720431755525,21.46,139.89,139.83,6.1581]
[1720431755704,20.70202927,139.88,139.83,6.1581]
[1720431756115,0.70202927,139.89,139.83,6.1581]
[1720431756420,20.70202927,139.96,139.83,6.1581]
[1720431756722,20.70202927,139.95,139.83,6.1581]
[1720431756903,38.90202927,139.95,139.83,6.1581]
[1720431757102,0.70202927,139.95,139.83,6.1581]
[1720431757349,0.70202927,139.94,139.83,6.1581]
[1720431757509,0.70202927,139.98,139.83,11.86729431]
[1720431758032,22.16202927,139.98,139.83,6.1581]
[1720431758405,22.16202927,139.98,139.84,0.17]
[1720431758406,60.36202927,139.98,139.84,0.17]
[1720431758603,21.46,139.96,139.83,6.1581]
[1720431758810,20.70202927,139.95,139.84,0.17]
[1720431759013,20.70202927,139.95,139.83,6.1581]
[1720431759014,42.16202927,139.95,139.83,6.1581]
[1720431759230,42.16202927,139.95,139.84,0.17]
[1720431759730,42.16202927,139.95,139.83,6.1581]
[1720431761110,68.82,139.92,139.83,6.1581]
[1720431761316,20.70202927,139.91,139.83,6.1581]
[1720431761702,47.36,139.96,139.83,6.1581]
[1720431761906,106.87771674,140.02,139.86,16.5844]
[1720431761907,0.70202927,139.95,139.86,16.5844]
[1720431762104,0.70202927,140.0,139.86,16.5844]
[1720431762316,22.16202927,140.0,139.86,16.5844]
[1720431762723,21.46,139.96,139.86,16.5844]
[1720431762901,0.70202927,139.95,139.86,16.5844]
[1720431763635,21.46,139.94,139.86,16.5844]
[1720431763921,42.16202927,139.93,139.86,16.5844]
[1720431764121,0.70202927,139.92,139.83,15.8777]
[1720431765330,0.70202927,139.92,139.84,0.17]
[1720431765525,0.70202927,139.93,139.84,0.17]
[1720431765829,22.5956,139.99,139.84,0.17]
[1720431765830,48.06202927,139.97,139.84,0.17]
[1720431766123,21.46,139.96,139.84,0.17]
[1720431766329,0.70202927,139.95,139.84,0.17]
[1720431766623,0.70202927,139.95,139.85,21.5292]
[1720431766803,0.70202927,139.95,139.86,0.17]
[1720431767008,0.70202927,139.95,139.85,21.5292]
[1720431767725,0.70202927,139.94,139.85,21.5292]
[1720431768314,0.70202927,139.97,139.85,6.5275]
[1720431768506,0.70202927,139.99,139.89,6.6461]
[1720431768735,0.70202927,139.99,139.9,0.17]
[1720431768950,16.4755,140.05,139.9,0.17]
[1720431768951,0.70202927,140.04,139.9,0.17]
[1720431769143,0.70202927,140.04,139.91,22.1678]
[1720431769543,0.70202927,140.04,139.92,0.17]
[1720431770143,0.70202927,140.04,139.91,22.1678]
[1720431770750,21.46,140.01,139.91,22.1678]
[1720431771058,0.70202927,140.0,139.91,22.1678]
[1720431771241,42.16202927,140.0,139.91,22.1678]
[1720431771555,42.16202927,140.0,139.87,15.0916]
[1720431772061,0.17,139.99,139.87,15.0916]
[1720431772260,0.70202927,139.98,139.87,15.0916]
[1720431773671,68.82,139.96,139.87,15.0916]
[1720431773963,0.70202927,139.95,139.87,15.0916]
[1720431774759,20.70202927,139.95,139.87,15.0916]
[1720431774962,0.70202927,139.94,139.87,15.0916]
[1720431775542,0.70202927,139.99,139.87,15.0916]
[1720431775755,0.70202927,139.98,139.87,15.0916]
[1720431775955,18.98313246,140.0,139.87,15.0916]
[1720431776149,21.46,139.99,139.87,15.0916]
[1720431776672,21.46,140.0,139.87,15.0916]
[1720431776967,5.65067546,140.01,139.9,16.0396]
[1720431777150,16.0538,140.06,139.91,6.1978]
[1720431777151,21.46,140.03,139.91,6.1978]
[1720431777639,21.46,139.99,139.91,6.1978]
[1720431778862,21.46,139.99,139.87,15.1907]
[1720431778863,21.46,139.95,139.87,15.1907]
[1720431779159,21.46,139.93,139.87,15.1907]
[1720431779345,20.0,139.94,139.87,15.1907]
[1720431779547,47.36,139.92,139.87,15.1907]
[1720431779739,20.0,139.91,139.87,15.1907]
[1720431780263,0.17,139.95,139.87,15.1907]
[1720431780264,20.17,139.95,139.87,15.1907]
[1720431780569,21.46,139.94,139.87,15.1907]
[1720431780769,41.46,139.93,139.87,15.1907]
[1720431780975,20.0,139.93,139.87,15.1907]
[1720431781277,47.36,140.0,139.88,6.6555]
[1720431781440,21.46,139.99,139.88,6.6555]
[1720431782640,53.03332882,140.0,139.88,6.6555]
[1720431782641,21.46,139.97,139.88,6.6555]
[1720431782967,21.46,139.95,139.87,15.1907]
[1720431783145,21.46,139.95,139.84,6.0859]
[1720431783146,21.46,139.91,139.84,6.0859]
[1720431783464,21.46,139.89,139.83,15.0415]
[1720431783961,21.46,139.87,139.83,15.0415]
[1720431784143,41.46,139.86,139.81,0.1]
[1720431785947,21.46,139.82,139.81,0.1]
[1720431786355,41.63,139.82,139.81,0.1]
[1720431786875,41.63,139.82,139.77,0.04239412]
[1720431787166,21.46,139.8,139.77,0.04239412]
[1720431787391,20.0,139.79,139.77,0.04239412]
[1720431787575,41.46,139.79,139.77,0.04239412]
[1720431787866,6.5546,139.99,139.78,22.1085]
[1720431788067,47.36,139.94,139.78,22.1085]
[1720431788573,47.36,139.9,139.78,22.1085]
[1720431788745,21.46,139.89,139.78,22.1085]
[1720431789372,0.17,139.88,139.78,22.1085]
[1720431789664,21.46,139.87,139.78,22.1085]
[1720431789867,21.46,139.85,139.78,22.1085]
[1720431790072,41.46,139.84,139.78,22.1085]
[1720431791247,21.46,139.81,139.77,0.04239412]
[1720431791646,21.46,139.79,139.77,0.04239412]
[1720431791865,20.0,139.78,139.77,0.04239412]
[1720431792055,41.46,139.78,139.77,0.04239412]
[1720431792974,20.0,139.78,139.77,0.04239412]
[1720431794248,41.46,139.81,139.77,0.04239412]
[1720431795960,0.17,139.8,139.77,0.04239412]
[1720431796459,68.82,139.78,139.77,0.04239412]
[1720431796659,88.82,139.78,139.77,0.04239412]
[1720431797271,73.32839942,139.78,139.77,0.04239412]
[1720431797580,51.86839942,139.78,139.77,0.04239412]
[1720431797876,73.32839942,139.78,139.77,0.04239412]
[1720431799470,73.32839942,139.78,139.71,0.1]
[1720431799676,21.46,139.76,139.71,0.1]
[1720431799856,20.0,139.75,139.71,0.1]
[1720431800050,41.46,139.75,139.71,0.1]
[1720431800258,20.0,139.75,139.71,0.1]
[1720431800477,20.0,139.77,139.71,0.1]
[1720431800772,20.0,139.77,139.61,21.5586]
[1720431800773,47.36,139.74,139.61,21.5586]
[1720431801079,21.46,139.73,139.61,21.5586]
[1720431801377,20.0,139.72,139.61,21.5586]
[1720431802069,21.46,139.74,139.61,21.5586]
[1720431802277,41.46,139.73,139.61,21.5586]
[1720431803453,20.0,139.73,139.61,21.5586]
[1720431803662,20.0,139.74,139.61,21.5586]
[1720431804080,21.46,139.75,139.61,21.5586]
[1720431804464,21.46,139.77,139.61,21.5586]
[1720431804769,21.46,139.77,139.62,0.17]
[1720431805277,21.46,139.77,139.63,22.3861]
[1720431805493,21.46,139.78,139.63,22.3861]
[1720431805682,21.46,139.78,139.64,0.17]
[1720431805859,68.82,139.75,139.64,0.17]
[1720431806056,68.82,139.75,139.63,22.3861]
[1720431807081,47.36,139.71,139.63,22.3861]
[1720431807679,20.0,139.7,139.63,22.3861]
[1720431808874,21.46,139.78,139.63,22.3861]
[1720431808875,47.36,139.75,139.64,0.17]
[1720431810177,21.46,139.78,139.65,22.1589]
[1720431810479,47.36,139.79,139.67,22.1589]
[1720431810685,47.36,139.79,139.68,0.17]
[1720431811072,47.36,139.79,139.67,22.1589]
[1720431811568,47.36,139.79,139.66,6.6645]
[1720431812582,47.36,139.79,139.67,0.17]
[1720431813264,20.0,139.78,139.67,0.17]
[1720431813467,20.0,139.78,139.69,15.5382]
[1720431813656,47.36,139.79,139.69,15.5382]
[1720431813861,47.36,139.79,139.7,0.17]
[1720431814058,47.36,139.79,139.69,15.5382]
[1720431815187,47.36,139.79,139.71,6.1469]
[1720431815589,21.46,139.85,139.71,6.1469]
[1720431815788,47.36,139.82,139.71,6.1469]
[1720431815970,21.46,139.85,139.72,15.7557]
[1720431816294,47.36,139.82,139.72,15.7557]
[1720431816467,20.0,139.81,139.72,15.7557]
[1720431817396,41.46,139.81,139.72,15.7557]
[1720431817561,20.0,139.81,139.72,15.7557]
[1720431820778,20.0,139.82,139.72,15.7557]
[1720431822768,41.46,139.82,139.72,15.7557]
[1720431823379,60.29,139.79,139.72,15.7557]
[1720431823682,60.29,139.79,139.71,6.1469]
[1720431823683,141.46,139.78,139.71,6.1469]
[1720431823892,60.29,139.75,139.68,15.0864]
[1720431824066,41.46,139.74,139.68,15.0864]
[1720431824268,38.83,139.71,139.68,15.0864]
[1720431824468,20.0,139.7,139.67,6.4519]
[1720431825167,20.0,139.7,139.64,15.0864]
[1720431827801,47.54,139.75,139.64,15.0864]
[1720431827976,21.46,139.76,139.64,15.0864]
[1720431828295,21.46,139.78,139.64,15.0864]
[1720431828593,21.46,139.78,139.65,0.17]
[1720431829088,21.46,139.78,139.64,15.0864]
[1720431829300,69.0,139.75,139.64,15.0864]
[1720431830197,21.46,139.73,139.64,15.0864]
[1720431830489,69.0,139.71,139.64,15.0864]
[1720431830700,41.46,139.7,139.64,15.0864]
[1720431831576,20.0,139.7,139.64,15.0864]
[1720431831773,41.46,139.7,139.64,15.0864]
[1720431833692,47.54,139.67,139.61,0.1]
[1720431833889,20.0,139.66,139.61,0.1]
[1720431834875,21.46,139.71,139.61,0.1]
[1720431835275,47.54,139.72,139.62,6.3191]
[1720431835486,47.54,139.72,139.63,16.5453]
[1720431835694,22.1696,139.82,139.63,16.7153]
[1720431835883,47.54,139.77,139.64,6.528]
[1720431836077,21.46,139.76,139.64,6.528]
[1720431837492,21.46,139.74,139.64,6.528]
[1720431837706,41.46,139.73,139.64,6.528]
[1720431838603,89.0,139.73,139.64,6.528]
[1720431839187,67.54,139.73,139.64,6.528]
[1720431839397,47.54,139.79,139.65,15.0183]
[1720431840405,21.46,139.78,139.65,15.0183]
[1720431840698,21.46,139.78,139.66,6.1668]
[1720431841679,21.46,139.79,139.67,15.0133]
[1720431841899,21.46,139.79,139.66,6.1668]
[1720431841900,47.54,139.8,139.69,15.0133]
[1720431842082,47.54,139.8,139.7,6.3214]
[1720431842272,47.54,139.8,139.71,15.0133]
[1720431842877,47.54,139.86,139.72,6.1044]
[1720431843200,47.54,139.86,139.74,6.1044]
[1720431843401,47.54,139.86,139.75,16.0076]
[1720431843698,47.54,139.86,139.76,6.1044]
[1720431843900,47.54,139.93,139.78,6.3567]
[1720431844104,20.66254272,139.92,139.78,6.3567]
[1720431844296,47.54,139.93,139.79,0.17]
[1720431844688,21.46,139.92,139.79,0.17]
[1720431845204,47.54,139.93,139.8,21.2101]
[1720431845416,47.54,139.95,139.81,0.17]
[1720431845704,47.54,139.95,139.82,6.1663]
[1720431845887,47.54,139.95,139.83,0.17]
[1720431846082,47.54,139.95,139.84,16.377]
[1720431847398,0.1,139.99,139.85,0.17]
[1720431847584,0.1,139.99,139.86,6.1554]
[1720431847787,0.1,139.99,139.87,0.17]
[1720431848298,0.1,139.99,139.88,15.131]
[1720431848497,0.1,139.99,139.89,0.17]
[1720431848703,0.1,139.99,139.88,15.131]
[1720431849601,20.1,139.99,139.88,15.131]
[1720431849918,41.56,139.99,139.88,15.131]
[1720431850214,36.50574386,139.99,139.88,15.131]
[1720431850689,20.1,139.99,139.89,1.42581261]
[1720431850891,0.1,139.99,139.88,15.131]